bitfinex-derivatives/quotes_SOLF0:USTF0_20251002
["timestamp","ask_amount","ask_price","bid_price","bid_amount"]
[1759442851120,7.34,233.49,233.37,3.8537]
[1759442851121,7.34,233.45,233.36,7.61]
[1759442852222,62.05823606,233.51,233.32,3.8546]
[1759442852223,2.93636667,233.48,233.39,2.14483606]
[1759442852424,2.93659252,233.53,233.44,7.59]
[1759442852629,2.93659252,233.52,233.44,7.59]
[1759442852927,7.39,233.54,233.44,7.59]
[1759442853124,2.93625629,233.53,233.44,7.59]
[1759442853321,2.93625629,233.52,233.44,7.59]
[1759442853522,7.39,233.58,233.44,7.59]
[1759442853722,3.8511,233.54,233.44,7.59]
[1759442854028,2.93710388,233.53,233.44,7.59]
[1759442854228,3.8511,233.54,233.44,7.59]
[1759442854229,2.93710388,233.52,233.44,7.59]
[1759442854434,2.93710388,233.51,233.44,7.59]
[1759442854632,3.8511,233.54,233.44,7.59]
[1759442854823,2.93808209,233.53,233.44,7.59]
[1759442855026,2.93808209,233.52,233.44,7.59]
[1759442855323,2.93808209,233.51,233.44,7.59]
[1759442855525,3.8511,233.54,233.44,7.59]
[1759442855724,2.9392778,233.53,233.44,7.59]
[1759442855925,2.9392778,233.52,233.44,7.59]
[1759442856124,2.9392778,233.51,233.44,7.59]
[1759442856333,7.39,233.58,233.44,7.59]
[1759442856526,2.93917393,233.57,233.44,7.59]
[1759442856726,7.39,233.58,233.44,7.59]
[1759442856727,2.93917393,233.56,233.44,7.59]
[1759442856926,2.93917393,233.55,233.44,7.59]
[1759442857128,2.93917393,233.54,233.44,7.59]
[1759442857328,2.93917393,233.53,233.44,7.59]
[1759442857527,2.93917393,233.52,233.44,7.59]
[1759442857727,2.93917393,233.51,233.44,7.59]
[1759442857930,7.39,233.55,233.44,7.59]
[1759442858130,2.93906728,233.54,233.44,7.59]
[1759442858328,2.93906728,233.53,233.47,2.14483606]
[1759442858527,7.39,233.59,233.48,7.59]
[1759442858829,2.93854582,233.58,233.52,2.14483606]
[1759442859126,311.44,233.67,233.53,7.59]
[1759442859127,7.39,233.66,233.53,7.59]
[1759442859323,2.93809514,233.65,233.57,7.59]
[1759442859527,68.14,233.69,233.6,2.14483606]
[1759442859727,2.9356866,233.68,233.6,2.14483606]
[1759442859927,68.14,233.69,233.6,2.14483606]
[1759442860432,68.14,233.69,233.54,4.772884]
[1759442860433,7.39,233.76,233.64,2.14483606]
[1759442860634,94.0,233.79,233.64,9.73483606]
[1759442860822,7.39,233.78,233.64,9.73483606]
[1759442861026,13.11469043,233.78,233.64,9.73483606]
[1759442861322,7.39,233.78,233.64,9.73483606]
[1759442861725,94.0,233.79,233.64,9.73483606]
[1759442861925,7.39,233.78,233.64,9.73483606]
[1759442863132,94.0,233.79,233.64,9.73483606]
[1759442863634,7.39,233.78,233.64,9.73483606]
[1759442863827,94.0,233.79,233.64,9.73483606]
[1759442863828,106.67686359,233.79,233.64,9.73483606]
[1759442864828,7.39,233.78,233.64,9.73483606]
[1759442865137,7.39,233.77,233.64,9.73483606]
[1759442865430,7.39,233.77,233.65,7.59]
[1759442874637,7.39,233.77,233.67,7.59]
[1759442874838,7.39,233.81,233.69,2.14483606]
[1759442875042,7.39,233.81,233.7,7.59]
[1759442880650,7.39,233.78,233.64,7.59]
[1759442881343,2.14483606,233.76,233.64,7.59]
[1759442881648,7.39,233.75,233.64,7.59]
[1759442882845,2.14483606,233.73,233.64,7.59]
[1759442883050,7.21,233.72,233.64,7.59]
[1759442883943,7.21,233.72,233.6,311.34]
[1759442884253,7.21,233.71,233.59,7.08]
[1759442887552,7.21,233.71,233.6,7.08]
[1759442888748,7.21,233.75,233.6,7.08]
[1759442889049,7.21,233.75,233.59,2.14483606]
[1759442889050,7.21,233.81,233.68,7.08]
[1759442890551,3.8469,233.8,233.68,7.08]
[1759442890752,7.21,233.79,233.68,7.08]
[1759442892351,9.35483606,233.79,233.68,7.08]
[1759442892546,7.21,233.74,233.62,7.08]
[1759442895559,7.21,233.71,233.62,7.08]
[1759442902065,2.14483606,233.77,233.62,2.14483606]
[1759442902370,1.36993473,233.76,233.67,7.08]
[1759442903966,8.57993473,233.77,233.67,7.08]
[1759442904567,8.57993473,233.77,233.68,1.36993473]
[1759442905669,42.14,233.82,233.64,1.36993473]
[1759442905670,7.61,233.74,233.64,1.36993473]
[1759442905870,1.36993473,233.73,233.64,8.62993473]
[1759442907069,1.36993473,233.69,233.6,1.36993473]
[1759442907264,1.36993473,233.67,233.58,7.26]
[1759442907571,7.61,233.68,233.6,7.26]
[1759442907970,1.36993473,233.67,233.6,7.26]
[1759442908472,11.4592,233.65,233.6,7.26]
[1759442909568,11.4592,233.65,233.57,1.36993473]
[1759442909569,7.61,233.65,233.58,7.26]
[1759442913477,3.8487,233.68,233.6,1.36993473]
[1759442913676,3.8487,233.68,233.61,6.95]
[1759442913976,6.96,233.69,233.61,6.95]
[1759442914272,3.8493,233.65,233.61,6.95]
[1759442914981,10.8093,233.65,233.61,6.95]
[1759442916072,3.8496,233.63,233.61,6.95]
[1759442916276,3.8496,233.63,233.59,6.95]
[1759442916877,3.8496,233.63,233.53,6.95]
[1759442916878,3.8498,233.62,233.53,6.95]
[1759442917073,6.96,233.63,233.56,1.36993473]
[1759442917276,6.96,233.63,233.55,8.31993473]
[1759442918078,3.85,233.61,233.55,8.31993473]
[1759442919776,3.8502,233.59,233.55,1.36993473]
[1759442920178,3.8502,233.59,233.56,6.95]
[1759442921583,10.8102,233.59,233.55,8.31993473]
[1759442921782,10.8102,233.59,233.55,1.36993473]
[1759442921984,10.8102,233.59,233.56,6.95]
[1759442922579,3.8505,233.57,233.55,1.36993473]
[1759442922781,6.96,233.57,233.52,8.31993473]
[1759442922984,1.36993473,233.62,233.52,8.31993473]
[1759442922985,6.96,233.59,233.52,6.95]
[1759442924088,6.96,233.59,233.5,1.36993473]
[1759442924289,3.8508,233.56,233.5,1.36993473]
[1759442925784,3.851,233.55,233.51,6.95]
[1759442926496,10.811,233.55,233.51,6.95]
[1759442927997,10.811,233.55,233.51,8.31993473]
[1759442929195,6.96,233.6,233.54,1.36993473]
[1759442930696,10.81,233.6,233.54,1.36993473]
[1759442930896,6.96,233.6,233.54,1.36993473]
[1759442932598,3.8503,233.58,233.54,1.36993473]
[1759442932796,10.8103,233.58,233.54,1.36993473]
[1759442936909,3.85,233.6,233.54,1.36993473]
[1759442937095,6.96,233.62,233.56,1.36993473]
[1759442937299,6.96,233.62,233.55,6.95]
[1759442937501,6.96,233.62,233.57,1.36993473]
[1759442937696,6.96,233.62,233.58,6.95]
[1759442938808,6.96,233.61,233.57,1.36993473]
[1759442939004,6.96,233.61,233.57,8.31993473]
[1759442940399,1.36993473,233.65,233.55,1.36993473]
[1759442940605,6.96,233.62,233.55,1.36993473]
[1759442941106,1.36993473,233.67,233.56,6.95]
[1759442941409,6.96,233.66,233.58,1.36993473]
[1759442942107,6.96,233.66,233.57,1.36993473]
[1759442944811,1.36993473,233.7,233.61,8.51993473]
[1759442945006,7.62,233.69,233.61,8.51993473]
[1759442945205,7.62,233.69,233.54,3.8509]
[1759442945206,7.62,233.69,233.59,1.36993473]
[1759442945406,1.36993473,233.68,233.59,1.36993473]
[1759442945608,7.62,233.67,233.59,1.36993473]
[1759442946411,7.62,233.67,233.61,1.36993473]
[1759442946609,20.65468243,233.72,233.64,1.36993473]
[1759442946807,7.62,233.72,233.64,1.36993473]
[1759442947801,1.36993473,233.7,233.54,4.772884]
[1759442948006,7.62,233.69,233.61,1.36993473]
[1759442948213,7.62,233.69,233.59,7.15]
[1759442948413,7.62,233.69,233.6,1.36993473]
[1759442951613,7.62,233.69,233.6,1.36993473]
[1759442952714,7.62,233.69,233.63,1.36993473]
[1759442957518,7.62,233.69,233.65,1.36993473]
[1759442957919,7.62,233.71,233.65,1.36993473]
[1759442958326,7.62,233.71,233.63,1.36993473]
[1759442958717,3.8485,233.7,233.63,1.36993473]
[1759442959023,8.98993473,233.71,233.61,8.51993473]
[1759442961923,7.62,233.71,233.61,8.51993473]
[1759442962324,7.62,233.71,233.63,1.36993473]
[1759442962526,7.62,233.71,233.65,1.36993473]
[1759442963024,318.67007659,233.86,233.68,1.36993473]
[1759442963025,7.62,233.75,233.68,1.36993473]
[1759442964326,7.62,233.75,233.66,7.15]
[1759442964530,7.12,233.73,233.61,7.47]
[1759442964933,7.12,233.7,233.56,7.47]
[1759442966329,7.12,233.7,233.59,2.14061217]
[1759442966631,7.12,233.7,233.6,7.47]
[1759442973029,7.41,233.75,233.63,7.42]
[1759442980652,11.2577,233.75,233.63,7.42]
[1759442984050,7.41,233.75,233.63,7.42]
[1759442984356,7.41,233.75,233.65,7.42]
[1759442986054,11.2575,233.75,233.65,7.42]
[1759442986447,7.41,233.75,233.65,7.42]
[1759442988358,3.8478,233.74,233.65,7.42]
[1759442989162,3.848,233.73,233.65,7.42]
[1759442990164,3.8482,233.72,233.65,7.42]
[1759442990354,11.2582,233.72,233.65,7.42]
[1759442991060,7.41,233.72,233.65,7.42]
[1759442991856,3.8485,233.7,233.65,7.42]
[1759442992058,7.41,233.74,233.65,7.42]
[1759442993167,3.8483,233.71,233.65,7.42]
[1759442996177,3.8485,233.7,233.65,7.42]
[1759442996364,3.8485,233.7,233.64,7.57475434]
[1759442997064,3.8486,233.69,233.65,7.42]
[1759442997862,7.41,233.72,233.64,7.57475434]
[1759442998058,59.864,233.7,233.64,7.57475434]
[1759442998258,7.41,233.69,233.64,7.57475434]
[1759442998472,11.2591,233.66,233.64,7.57475434]
[1759443002869,7.42,233.65,233.57,7.7]
[1759443004674,3.8496,233.63,233.57,7.7]
[1759443008669,3.8498,233.62,233.57,7.7]
[1759443008974,2.14061217,233.69,233.55,7.7]
[1759443008975,67.2978,233.65,233.55,7.7]
[1759443009176,7.42,233.63,233.55,7.7]
[1759443009471,7.42,233.58,233.51,7.7]
[1759443009769,7.42,233.65,233.51,7.7]
[1759443010174,7.42,233.63,233.51,7.7]
[1759443010369,7.42,233.6,233.51,7.7]
[1759443011476,3.8503,233.58,233.51,7.7]
[1759443011679,7.42,233.6,233.51,7.7]
[1759443012774,3.8506,233.57,233.51,7.7]
[1759443013280,7.42,233.57,233.51,7.7]
[1759443014777,3.851,233.55,233.48,7.7]
[1759443019485,59.8854,233.62,233.51,7.7]
[1759443019486,3.8503,233.58,233.51,7.7]
[1759443020887,3.8506,233.57,233.51,7.7]
[1759443021082,20.19902837,233.61,233.51,7.7]
[1759443021482,3.8503,233.58,233.51,7.7]
[1759443022177,7.42,233.59,233.51,7.7]
[1759443026276,7.42,233.59,233.52,1.37184005]
[1759443027587,7.42,233.59,233.51,7.7]
[1759443027889,7.42,233.59,233.52,1.37184005]
[1759443028388,7.42,233.59,233.51,7.7]
[1759443028585,8.79184005,233.59,233.51,7.7]
[1759443029691,12.64214005,233.59,233.51,7.7]
[1759443029991,8.79184005,233.59,233.51,7.7]
[1759443031989,7.08,233.57,233.51,7.7]
[1759443032787,7.08,233.57,233.5,1.37184005]
[1759443032788,1.37184005,233.57,233.48,1.37184005]
[1759443032987,1.37184005,233.55,233.47,7.21]
[1759443033188,7.08,233.54,233.47,7.21]
[1759443033991,7.08,233.51,233.44,1.37184005]
[1759443035390,7.08,233.51,233.41,12.08945527]
[1759443035391,3.851,233.54,233.47,8.58184005]
[1759443036994,7.08,233.55,233.47,8.58184005]
[1759443038702,3.8511,233.54,233.47,8.58184005]
[1759443040299,7.08,233.55,233.47,8.58184005]
[1759443041601,3.8514,233.52,233.47,1.37184005]
[1759443041804,10.9314,233.52,233.48,7.21]
[1759443042200,10.9314,233.52,233.47,1.37184005]
[1759443042406,10.9314,233.52,233.48,7.21]
[1759443042701,7.08,233.51,233.48,7.21]
[1759443046111,10.9316,233.51,233.48,7.21]
[1759443047005,10.9316,233.51,233.45,1.37184005]
[1759443047006,7.08,233.55,233.46,7.21]
[1759443047701,3.8513,233.53,233.46,7.21]
[1759443048305,3.8514,233.52,233.46,7.21]
[1759443048904,7.08,233.55,233.45,1.37184005]
[1759443049107,7.08,233.53,233.46,7.21]
[1759443050419,3.8515,233.51,233.46,7.21]
[1759443050916,3.8515,233.51,233.41,12.08945527]
[1759443050917,3.8515,233.51,233.47,1.37184005]
[1759443051310,3.8515,233.51,233.48,7.21]
[1759443051510,3.8515,233.51,233.47,1.37184005]
[1759443051710,3.8515,233.51,233.48,7.21]
[1759443053312,3.8515,233.51,233.47,1.37184005]
[1759443053611,7.08,233.53,233.48,7.21]
[1759443054012,7.08,233.58,233.48,7.21]
[1759443054812,7.08,233.58,233.5,1.37184005]
[1759443055018,7.08,233.58,233.5,8.58184005]
[1759443055414,3.8511,233.54,233.5,1.37184005]
[1759443055720,10.9311,233.54,233.51,7.21]
[1759443057214,10.9311,233.54,233.5,1.37184005]
[1759443057415,3.8513,233.53,233.51,7.21]
[1759443065419,3.8515,233.51,233.5,1.37184005]
[1759443065722,7.37,233.51,233.45,1.37184005]
[1759443065919,7.37,233.51,233.43,7.1]
[1759443066122,3.8524,233.46,233.42,1.37184005]
[1759443066514,3.8524,233.46,233.41,12.08945527]
[1759443066515,3.8526,233.45,233.43,7.1]
[1759443066716,7.37,233.45,233.41,19.18945527]
[1759443067123,7.37,233.46,233.41,12.08945527]
[1759443067317,165.0885,233.53,233.44,7.1]
[1759443067318,112.55,233.52,233.44,7.1]
[1759443067513,112.55,233.52,233.45,1.37184005]
[1759443067721,3.8517,233.5,233.46,7.1]
[1759443068318,11.2217,233.5,233.46,7.1]
[1759443071322,7.37,233.49,233.46,7.1]
[1759443071628,8.74184005,233.5,233.42,8.47184005]
[1759443071823,8.74184005,233.5,233.42,7.1]
[1759443073225,1.37184005,233.5,233.41,12.08945527]
[1759443073419,7.37,233.44,233.41,12.08945527]
[1759443073825,7.37,233.47,233.42,7.1]
[1759443074024,3.8524,233.46,233.41,19.18945527]
[1759443074329,7.37,233.45,233.41,19.18945527]
[1759443074629,7.37,233.45,233.42,7.1]
[1759443075129,86.05184005,233.5,233.41,12.08945527]
[1759443075330,1.37184005,233.47,233.41,12.08945527]
[1759443075526,7.37,233.46,233.41,12.08945527]
[1759443075731,1.37184005,233.47,233.41,12.08945527]
[1759443076133,7.37,233.46,233.41,12.08945527]
[1759443076328,1.37184005,233.47,233.41,12.08945527]
[1759443076632,3.853,233.42,233.41,12.08945527]
[1759443077234,11.223,233.42,233.41,12.08945527]
[1759443077422,3.8533,233.4,233.36,7.1]
[1759443077621,11.2233,233.4,233.34,1.37184005]
[1759443078134,3.8536,233.39,233.33,8.47184005]
[1759443079331,3.8538,233.37,233.29,73.9]
[1759443079632,7.37,233.4,233.33,7.1]
[1759443080025,3.8536,233.39,233.33,7.1]
[1759443083531,3.8531,233.41,233.35,7.1]
[1759443084628,3.8534,233.4,233.34,8.90184005]
[1759443085035,7.38,233.4,233.34,7.53]
[1759443086438,3.8536,233.38,233.34,7.53]
[1759443086738,7.38,233.39,233.32,1.37184005]
[1759443087237,3.8539,233.37,233.32,1.37184005]
[1759443087639,3.8539,233.37,233.33,7.53]
[1759443087833,11.2341,233.36,233.32,1.37184005]
[1759443088029,11.2341,233.36,233.28,319.15]
[1759443088030,7.38,233.35,233.3,1.37184005]
[1759443088239,3.8541,233.36,233.29,7.53]
[1759443088734,12.76172879,233.41,233.26,7.53]
[1759443088735,7.38,233.4,233.26,7.53]
[1759443088943,105.18,233.39,233.28,7.53]
[1759443089239,7.38,233.4,233.27,2.14730457]
[1759443089240,7.38,233.4,233.31,7.53]
[1759443090541,11.2334,233.4,233.31,7.53]
[1759443091042,7.38,233.4,233.31,7.53]
[1759443091942,3.8538,233.38,233.31,7.53]
[1759443093545,3.854,233.36,233.3,9.38730457]
[1759443093843,7.37,233.38,233.3,7.24]
[1759443094039,3.8543,233.35,233.3,7.24]
[1759443094236,11.2243,233.35,233.28,7.24]
[1759443096048,12.76172879,233.41,233.31,7.24]
[1759443096347,7.37,233.42,233.31,7.24]
[1759443097149,19.95524547,233.42,233.33,2.14730457]
[1759443097452,7.37,233.42,233.34,7.24]
[1759443098142,3.8532,233.41,233.34,7.24]
[1759443100543,3.8534,233.4,233.34,7.24]
[1759443100849,7.37,233.4,233.31,7.24]
[1759443102047,7.37,233.34,233.31,7.24]
[1759443102247,7.37,233.34,233.27,9.38730457]
[1759443102446,7.37,233.34,233.27,7.24]
[1759443102648,3.8547,233.32,233.27,7.24]
[1759443102849,7.37,233.31,233.27,7.24]
[1759443103253,7.37,233.31,233.24,7.24]
[1759443104246,11.2249,233.31,233.24,7.24]
[1759443108351,3.8545,233.33,233.24,7.24]
[1759443110148,3.8545,233.33,233.25,7.24]
[1759443111355,7.37,233.32,233.25,7.24]
[1759443112568,3.8549,233.31,233.25,7.24]
[1759443113972,3.8551,233.3,233.25,7.24]
[1759443114174,11.2251,233.3,233.24,7.24]
[1759443118070,3.8551,233.3,233.24,7.24]
[1759443118772,11.2246,233.33,233.24,7.24]
[1759443119472,3.8547,233.32,233.24,7.24]
[1759443119673,7.37,233.33,233.24,7.24]
[1759443120065,3.855,233.3,233.24,7.24]
[1759443121169,3.8547,233.32,233.24,7.24]
[1759443126079,7.37,233.33,233.24,7.24]
[1759443130181,7.37,233.33,233.26,7.29]
[1759443133581,7.37,233.33,233.26,11.1455]
[1759443133885,7.29,233.4,233.27,7.29]
[1759443134583,7.29,233.4,233.28,3.8553]
[1759443135082,7.29,233.4,233.29,3.855]
[1759443136185,7.29,233.4,233.27,7.29]
[1759443139986,11.1434,233.4,233.27,7.29]
[1759443140182,7.29,233.4,233.27,7.29]
[1759443140882,3.8538,233.38,233.27,7.29]
[1759443141286,7.29,233.37,233.27,7.29]
[1759443142187,11.1439,233.37,233.27,7.29]
[1759443149386,3.8541,233.36,233.27,7.29]
[1759443149588,7.62,233.35,233.27,7.29]
[1759443151092,11.4742,233.35,233.27,7.29]
[1759443152795,3.8544,233.34,233.27,7.29]
[1759443156202,7.09,233.31,233.27,7.29]
[1759443156407,7.09,233.31,233.26,1.37459327]
[1759443156706,7.09,233.3,233.27,7.04]
[1759443157708,7.09,233.28,233.25,7.04]
[1759443158303,10.9454,233.28,233.25,7.04]
[1759443159909,3.855,233.3,233.24,7.04]
[1759443160513,3.8552,233.29,233.24,7.04]
[1759443161110,3.8554,233.28,233.23,14.54649791]
[1759443161312,7.09,233.27,233.24,7.04]
[1759443162605,7.09,233.25,233.23,7.50649791]
[1759443162808,7.09,233.25,233.17,7.04]
[1759443163112,7.09,233.23,233.17,7.04]
[1759443163411,3.8564,233.22,233.17,7.04]
[1759443163612,7.09,233.21,233.17,7.04]
[1759443163910,3.8564,233.22,233.17,7.04]
[1759443164107,7.09,233.21,233.17,7.04]
[1759443164503,3.8564,233.22,233.17,7.04]
[1759443165114,7.09,233.2,233.14,7.61118219]
[1759443165608,12.32139327,233.2,233.14,7.61118219]
[1759443166006,3.8554,233.28,233.15,7.04]
[1759443166210,4.80003479,233.3,233.15,7.04]
[1759443166211,7.09,233.24,233.17,1.37459327]
[1759443167306,1.37459327,233.23,233.14,8.98577546]
[1759443167512,7.09,233.22,233.14,8.98577546]
[1759443168613,3.8569,233.19,233.14,8.98577546]
[1759443168806,10.9469,233.19,233.15,7.04]
[1759443169012,10.9469,233.19,233.16,7.04]
[1759443171710,1.37459327,233.23,233.14,8.98577546]
[1759443171711,1.37459327,233.21,233.14,7.61118219]
[1759443171916,7.09,233.2,233.14,7.61118219]
[1759443172610,10.9472,233.17,233.14,7.61118219]
[1759443172812,10.9472,233.17,233.14,14.65118219]
[1759443173918,7.09,233.16,233.14,7.61118219]
[1759443176914,3.8572,233.17,233.15,7.04]
[1759443177114,1.37459327,233.21,233.15,7.04]
[1759443177115,10.9468,233.19,233.15,7.04]
[1759443178114,10.9471,233.18,233.15,7.04]
[1759443178317,7.09,233.18,233.15,7.04]
[1759443178616,3.8564,233.22,233.18,7.04]
[1759443178813,7.09,233.29,233.21,1.37459327]
[1759443179015,112.15,233.29,233.21,1.37459327]
[1759443179415,7.09,233.24,233.21,1.37459327]
[1759443180127,7.09,233.24,233.21,8.41459327]
[1759443181422,10.9461,233.24,233.21,8.41459327]
[1759443182524,7.09,233.24,233.21,8.41459327]
[1759443182821,100.11653587,233.28,233.21,8.66459327]
[1759443182822,20.62653587,233.28,233.21,8.66459327]
[1759443183019,3.8553,233.29,233.23,1.37459327]
[1759443183220,20.57250301,233.35,233.28,1.37459327]
[1759443183426,7.53,233.33,233.24,1.37459327]
[1759443183728,3.8551,233.3,233.24,1.37459327]
[1759443183917,3.8551,233.3,233.26,1.37459327]
[1759443184122,319.55,233.37,233.3,7.29]
[1759443184323,332.25610142,233.37,233.3,7.29]
[1759443184722,424.59,233.37,233.3,7.29]
[1759443185825,3.854,233.36,233.3,7.29]
[1759443186927,3.854,233.36,233.3,8.66459327]
[1759443187124,3.8543,233.34,233.3,8.66459327]
[1759443187324,7.53,233.33,233.3,7.29]
[1759443187919,3.8543,233.34,233.3,7.29]
[1759443188430,11.3843,233.34,233.3,7.29]
[1759443188922,105.02,233.36,233.3,8.66459327]
[1759443189123,315.8739,233.37,233.32,1.37459327]
[1759443189327,420.8939,233.37,233.33,7.29]
[1759443189535,428.4239,233.37,233.33,7.29]
[1759443189718,420.8939,233.37,233.32,1.37459327]
[1759443190028,7.53,233.36,233.3,8.66459327]
[1759443190524,3.26465027,233.35,233.3,8.66459327]
[1759443190726,3.26465027,233.34,233.31,7.29]
[1759443190931,3.26465027,233.33,233.31,7.29]
[1759443191233,7.53,233.36,233.3,1.37459327]
[1759443191431,3.26477217,233.35,233.33,7.29]
[1759443191631,3.26477217,233.34,233.33,7.29]
[1759443191831,3.26477217,233.34,233.32,1.37459327]
[1759443192032,3.26477217,233.33,233.3,1.37459327]
[1759443192330,428.4239,233.37,233.3,8.66459327]
[1759443192533,3.25371711,233.36,233.3,8.66459327]
[1759443192733,3.25371711,233.35,233.3,1.37459327]
[1759443192929,3.25371711,233.34,233.31,7.29]
[1759443193126,3.25371711,233.33,233.3,1.37459327]
[1759443193327,3.8542,233.35,233.3,8.66459327]
[1759443193529,10.78402974,233.34,233.3,8.66459327]
[1759443193731,3.25402974,233.33,233.3,8.66459327]
[1759443193930,3.25402974,233.32,233.3,8.66459327]
[1759443194136,7.53,233.34,233.3,8.66459327]
[1759443194333,3.25435548,233.33,233.3,8.66459327]
[1759443194635,3.25435548,233.32,233.3,8.66459327]
[1759443194828,7.53,233.34,233.3,8.66459327]
[1759443195030,10.78415357,233.33,233.3,8.66459327]
[1759443195235,7.53,233.33,233.3,8.66459327]
[1759443198037,10.7736627,233.32,233.26,7.29]
[1759443198345,7.53,233.3,233.26,8.66459327]
[1759443199534,11.3851,233.3,233.26,8.66459327]
[1759443200338,3.24501011,233.29,233.26,8.66459327]
[1759443200540,11.3851,233.3,233.26,8.66459327]
[1759443200738,3.24501011,233.29,233.26,8.66459327]
[1759443200937,11.3851,233.3,233.26,8.66459327]
[1759443201137,3.24501011,233.29,233.26,8.66459327]
[1759443201435,11.3851,233.3,233.26,8.66459327]
[1759443201735,3.24540886,233.29,233.26,8.66459327]
[1759443201936,11.3851,233.3,233.26,8.66459327]
[1759443202230,3.24540886,233.29,233.26,8.66459327]
[1759443202435,11.3851,233.3,233.26,8.66459327]
[1759443202642,3.24577687,233.29,233.26,8.66459327]
[1759443202842,11.3851,233.3,233.26,8.66459327]
[1759443203140,7.53,233.28,233.24,1.37459327]
[1759443203344,7.53,233.3,233.24,7.29]
[1759443203535,104.98,233.31,233.24,7.29]
[1759443203536,7.53,233.28,233.24,7.29]
[1759443203842,3.2462222,233.27,233.24,7.29]
[1759443204031,7.53,233.28,233.24,7.29]
[1759443204235,7.10215527,233.27,233.24,7.29]
[1759443204430,3.8556,233.27,233.24,7.29]
[1759443205335,11.4056,233.27,233.24,7.29]
[1759443208846,3.24708335,233.26,233.2,8.36459327]
[1759443209046,3.24722687,233.25,233.2,1.37459327]
[1759443209246,7.55,233.25,233.21,6.99]
[1759443210045,3.24766771,233.24,233.21,6.99]
[1759443210240,7.55,233.25,233.2,1.37459327]
[1759443210440,7.55,233.25,233.21,6.99]
[1759443210746,11.4058,233.25,233.21,6.99]
[1759443210940,7.55,233.23,233.21,6.99]
[1759443211343,7.55,233.23,233.2,1.37459327]
[1759443211544,7.48,233.23,233.2,1.37459327]
[1759443212145,7.48,233.23,233.2,8.88459327]
[1759443212346,7.48,233.23,233.2,7.51]
[1759443215956,3.8561,233.24,233.16,7.51]
[1759443216154,3.24931659,233.23,233.16,7.51]
[1759443216452,3.8561,233.24,233.16,7.51]
[1759443216643,3.24988274,233.23,233.16,7.51]
[1759443216848,3.24992888,233.22,233.15,7.51]
[1759443217053,3.24992888,233.21,233.15,7.51]
[1759443217252,10.72992888,233.2,233.14,7.61118219]
[1759443217449,3.24992888,233.19,233.14,7.61118219]
[1759443217649,3.24992888,233.18,233.14,7.61118219]
[1759443217847,7.48,233.16,233.14,7.61118219]
[1759443221952,3.8575,233.15,233.07,7.51]
[1759443223153,7.48,233.16,233.07,7.51]
[1759443223954,11.3374,233.16,233.07,7.51]
[1759443225260,3.8576,233.14,233.07,7.51]
[1759443225453,7.48,233.13,233.07,7.51]
[1759443225853,7.48,233.11,233.02,7.51]
[1759443226555,11.3382,233.11,233.02,7.51]
[1759443230261,7.48,233.08,232.98,7.51]
[1759443231059,3.8584,233.1,233.01,2.14963456]
[1759443231260,3.8584,233.1,233.02,7.51]
[1759443236368,11.3379,233.12,233.02,7.51]
[1759443236559,11.3379,233.12,233.04,2.14963456]